Workbook

Sheet 1. Report.MAFFS.by.Incident
A3: Set to current date and refresh before transmitting.
A4: If you want to see a display for a specific dates select those dates
A8: Year | B8: (blank)
A9: Month | B9: (blank) | D9: Click to select a Month
A10: Day | B10: (blank) | D10: Click to select a Day
A12: MAFFS Unit | B12: P-Code | C12: Fire Name | D12: State | E12: Unit | F12: Sorties | G12: Gallons of Retardant | H12: Flight Hours
A13: (blank) | B13: (blank) | C13: (blank) | D13: (blank) | E13: (blank) | F13: 0 | G13: 0 | H13: 0
A15: (blank) Total | F15: 0 | G15: 0 | H15: 0
A16: Grand Total | F16: 0 | G16: 0 | H16: 0

Sheet 2. Report.Summary.All
D5: Resource Order
A6: Fire Name | B6: Base Location | C6: P-Code | D6: MAFFS # | E6: State | F6: Unit Identifier | G6: Order No. | H6: Month | I6: Day | J6: Sorties | K6: Retardant Gallons | L6: Retardant Cost | M6: Flight Hours
A7: Grand Total

Sheet 3. MAFFS Military Costs
E1: MAFFS Military Costs at | H1: =Mailing.list!C19 -> Greeneville, SC
A3: Date | B3: USAFR Personnel Present | C3: ANG Personnel Present | D3: USAFR Military Personnel Cost | E3: ANG Military Personnel Cost | F3: A/C RON | G3: USAFR Support A.C. Hours | H3: ANG Support A.C. Hours | I3: USAFR Mission A.C. Hours | J3: ANG Mission A.C. Hours | K3: USAFR Support AC Cost | L3: ANG Support AC Cost | M3: USAFR Misson AC Cost | N3: ANG Misson AC Cost | O3: Total Aircraft Cost | P3: Total Daily Military Cost
D4: =SUM((B4)*500) -> 0 | E4: =SUM(C4*500) -> 0 | G4: =SUM(IF(('7. DATA'!$I$2:$I$24='3. MAFFS Military Costs'!$A4)*('7. DATA'!$D$2:$D$24="Support")*('7. DATA'!$E$2:$E$24="A"),'7. DATA'!$Q$2:$Q$24,0)) -> 0 | H4: =SUM(IF(('7. DATA'!$I$2:$I$24='3. MAFFS Military Costs'!$A4)*('7. DATA'!$D$2:$D$24="Support")*('7. DATA'!$E$2:$E$24="N"),'7. DATA'!$Q$2:$Q$24,0)) -> 0 | I4: =SUM(IF(('7. DATA'!$I$2:$I$24='3. MAFFS Military Costs'!$A4)*('7. DATA'!$D$2:$D$24<>"Support")*('7. DATA'!$E$2:$E$24="A"),'7. DATA'!$Q$2:$Q$24,0)) -> 0 | J4: =SUM(IF(('7. DATA'!$I$2:$I$24='3. MAFFS Military Costs'!$A4)*('7. DATA'!$D$2:$D$24<>"Support")*('7. DATA'!$E$2:$E$24="N"),'7. DATA'!$Q$2:$Q$24,0)) -> 0 | K4: =G4*6964 -> 0 | L4: =H4*6964 -> 0 | M4: =I4*6964 -> 0 | N4: =J4*6964 -> 0 | O4: =SUM(K4:N4) -> 0 | P4: =+D4+E4+O4 -> 0
A5: =+A4+1 -> 1900-01-01 | D5: =SUM((B5)*500) -> 0 | E5: =SUM(C5*500) -> 0 | G5: =SUM(IF(('7. DATA'!$I$2:$I$24='3. MAFFS Military Costs'!$A5)*('7. DATA'!$D$2:$D$24="Support")*('7. DATA'!$E$2:$E$24="A"),'7. DATA'!$Q$2:$Q$24,0)) -> 0 | H5: =SUM(IF(('7. DATA'!$I$2:$I$24='3. MAFFS Military Costs'!$A5)*('7. DATA'!$D$2:$D$24="Support")*('7. DATA'!$E$2:$E$24="N"),'7. DATA'!$Q$2:$Q$24,0)) -> 0 | I5: =SUM(IF(('7. DATA'!$I$2:$I$24='3. MAFFS Military Costs'!$A5)*('7. DATA'!$D$2:$D$24<>"Support")*('7. DATA'!$E$2:$E$24="A"),'7. DATA'!$Q$2:$Q$24,0)) -> 0 | J5: =SUM(IF(('7. DATA'!$I$2:$I$24='3. MAFFS Military Costs'!$A5)*('7. DATA'!$D$2:$D$24<>"Support")*('7. DATA'!$E$2:$E$24="N"),'7. DATA'!$Q$2:$Q$24,0)) -> 0 | K5: =G5*6964 -> 0 | L5: =H5*6964 -> 0 | M5: =I5*6964 -> 0 | N5: =J5*6964 -> 0 | O5: 0 | P5: 0
A6: =+A5+1 -> 1900-01-02 | D6: 0 | E6: 0 | G6: =SUM(IF(('7. DATA'!$I$2:$I$24='3. MAFFS Military Costs'!$A6)*('7. DATA'!$D$2:$D$24="Support")*('7. DATA'!$E$2:$E$24="A"),'7. DATA'!$Q$2:$Q$24,0)) -> 0 | H6: =SUM(IF(('7. DATA'!$I$2:$I$24='3. MAFFS Military Costs'!$A6)*('7. DATA'!$D$2:$D$24="Support")*('7. DATA'!$E$2:$E$24="N"),'7. DATA'!$Q$2:$Q$24,0)) -> 0 | I6: =SUM(IF(('7. DATA'!$I$2:$I$24='3. MAFFS Military Costs'!$A6)*('7. DATA'!$D$2:$D$24<>"Support")*('7. DATA'!$E$2:$E$24="A"),'7. DATA'!$Q$2:$Q$24,0)) -> 0 | J6: =SUM(IF(('7. DATA'!$I$2:$I$24='3. MAFFS Military Costs'!$A6)*('7. DATA'!$D$2:$D$24<>"Support")*('7. DATA'!$E$2:$E$24="N"),'7. DATA'!$Q$2:$Q$24,0)) -> 0 | K6: 0 | L6: 0 | M6: 0 | N6: 0 | O6: 0 | P6: 0
A7: 1900-01-03 | D7: 0 | E7: 0 | G7: =SUM(IF(('7. DATA'!$I$2:$I$24='3. MAFFS Military Costs'!$A7)*('7. DATA'!$D$2:$D$24="Support")*('7. DATA'!$E$2:$E$24="A"),'7. DATA'!$Q$2:$Q$24,0)) -> 0 | H7: =SUM(IF(('7. DATA'!$I$2:$I$24='3. MAFFS Military Costs'!$A7)*('7. DATA'!$D$2:$D$24="Support")*('7. DATA'!$E$2:$E$24="N"),'7. DATA'!$Q$2:$Q$24,0)) -> 0 | I7: =SUM(IF(('7. DATA'!$I$2:$I$24='3. MAFFS Military Costs'!$A7)*('7. DATA'!$D$2:$D$24<>"Support")*('7. DATA'!$E$2:$E$24="A"),'7. DATA'!$Q$2:$Q$24,0)) -> 0 | J7: =SUM(IF(('7. DATA'!$I$2:$I$24='3. MAFFS Military Costs'!$A7)*('7. DATA'!$D$2:$D$24<>"Support")*('7. DATA'!$E$2:$E$24="N"),'7. DATA'!$Q$2:$Q$24,0)) -> 0 | K7: 0 | L7: 0 | M7: 0 | N7: 0 | O7: 0 | P7: 0
A8: 1900-01-04 | D8: 0 | E8: 0 | G8: =SUM(IF(('7. DATA'!$I$2:$I$24='3. MAFFS Military Costs'!$A8)*('7. DATA'!$D$2:$D$24="Support")*('7. DATA'!$E$2:$E$24="A"),'7. DATA'!$Q$2:$Q$24,0)) -> 0 | H8: =SUM(IF(('7. DATA'!$I$2:$I$24='3. MAFFS Military Costs'!$A8)*('7. DATA'!$D$2:$D$24="Support")*('7. DATA'!$E$2:$E$24="N"),'7. DATA'!$Q$2:$Q$24,0)) -> 0 | I8: =SUM(IF(('7. DATA'!$I$2:$I$24='3. MAFFS Military Costs'!$A8)*('7. DATA'!$D$2:$D$24<>"Support")*('7. DATA'!$E$2:$E$24="A"),'7. DATA'!$Q$2:$Q$24,0)) -> 0 | J8: =SUM(IF(('7. DATA'!$I$2:$I$24='3. MAFFS Military Costs'!$A8)*('7. DATA'!$D$2:$D$24<>"Support")*('7. DATA'!$E$2:$E$24="N"),'7. DATA'!$Q$2:$Q$24,0)) -> 0 | K8: 0 | L8: 0 | M8: 0 | N8: 0 | O8: 0 | P8: 0
A9: 1900-01-05 | D9: 0 | E9: 0 | G9: =SUM(IF(('7. DATA'!$I$2:$I$24='3. MAFFS Military Costs'!$A9)*('7. DATA'!$D$2:$D$24="Support")*('7. DATA'!$E$2:$E$24="A"),'7. DATA'!$Q$2:$Q$24,0)) -> 0 | H9: =SUM(IF(('7. DATA'!$I$2:$I$24='3. MAFFS Military Costs'!$A9)*('7. DATA'!$D$2:$D$24="Support")*('7. DATA'!$E$2:$E$24="N"),'7. DATA'!$Q$2:$Q$24,0)) -> 0 | I9: =SUM(IF(('7. DATA'!$I$2:$I$24='3. MAFFS Military Costs'!$A9)*('7. DATA'!$D$2:$D$24<>"Support")*('7. DATA'!$E$2:$E$24="A"),'7. DATA'!$Q$2:$Q$24,0)) -> 0 | J9: =SUM(IF(('7. DATA'!$I$2:$I$24='3. MAFFS Military Costs'!$A9)*('7. DATA'!$D$2:$D$24<>"Support")*('7. DATA'!$E$2:$E$24="N"),'7. DATA'!$Q$2:$Q$24,0)) -> 0 | K9: 0 | L9: 0 | M9: 0 | N9: 0 | O9: 0 | P9: 0
A10: 1900-01-06 | D10: 0 | E10: 0 | G10: =SUM(IF(('7. DATA'!$I$2:$I$24='3. MAFFS Military Costs'!$A10)*('7. DATA'!$D$2:$D$24="Support")*('7. DATA'!$E$2:$E$24="A"),'7. DATA'!$Q$2:$Q$24,0)) -> 0 | H10: =SUM(IF(('7. DATA'!$I$2:$I$24='3. MAFFS Military Costs'!$A10)*('7. DATA'!$D$2:$D$24="Support")*('7. DATA'!$E$2:$E$24="N"),'7. DATA'!$Q$2:$Q$24,0)) -> 0 | I10: =SUM(IF(('7. DATA'!$I$2:$I$24='3. MAFFS Military Costs'!$A10)*('7. DATA'!$D$2:$D$24<>"Support")*('7. DATA'!$E$2:$E$24="A"),'7. DATA'!$Q$2:$Q$24,0)) -> 0 | J10: =SUM(IF(('7. DATA'!$I$2:$I$24='3. MAFFS Military Costs'!$A10)*('7. DATA'!$D$2:$D$24<>"Support")*('7. DATA'!$E$2:$E$24="N"),'7. DATA'!$Q$2:$Q$24,0)) -> 0 | K10: 0 | L10: 0 | M10: 0 | N10: 0 | O10: 0 | P10: 0
A11: 1900-01-07 | D11: 0 | E11: 0 | G11: =SUM(IF(('7. DATA'!$I$2:$I$24='3. MAFFS Military Costs'!$A11)*('7. DATA'!$D$2:$D$24="Support")*('7. DATA'!$E$2:$E$24="A"),'7. DATA'!$Q$2:$Q$24,0)) -> 0 | H11: =SUM(IF(('7. DATA'!$I$2:$I$24='3. MAFFS Military Costs'!$A11)*('7. DATA'!$D$2:$D$24="Support")*('7. DATA'!$E$2:$E$24="N"),'7. DATA'!$Q$2:$Q$24,0)) -> 0 | I11: =SUM(IF(('7. DATA'!$I$2:$I$24='3. MAFFS Military Costs'!$A11)*('7. DATA'!$D$2:$D$24<>"Support")*('7. DATA'!$E$2:$E$24="A"),'7. DATA'!$Q$2:$Q$24,0)) -> 0 | J11: =SUM(IF(('7. DATA'!$I$2:$I$24='3. MAFFS Military Costs'!$A11)*('7. DATA'!$D$2:$D$24<>"Support")*('7. DATA'!$E$2:$E$24="N"),'7. DATA'!$Q$2:$Q$24,0)) -> 0 | K11: 0 | L11: 0 | M11: 0 | N11: 0 | O11: 0 | P11: 0
A12: 1900-01-08 | D12: 0 | E12: 0 | G12: =SUM(IF(('7. DATA'!$I$2:$I$24='3. MAFFS Military Costs'!$A12)*('7. DATA'!$D$2:$D$24="Support")*('7. DATA'!$E$2:$E$24="A"),'7. DATA'!$Q$2:$Q$24,0)) -> 0 | H12: =SUM(IF(('7. DATA'!$I$2:$I$24='3. MAFFS Military Costs'!$A12)*('7. DATA'!$D$2:$D$24="Support")*('7. DATA'!$E$2:$E$24="N"),'7. DATA'!$Q$2:$Q$24,0)) -> 0 | I12: =SUM(IF(('7. DATA'!$I$2:$I$24='3. MAFFS Military Costs'!$A12)*('7. DATA'!$D$2:$D$24<>"Support")*('7. DATA'!$E$2:$E$24="A"),'7. DATA'!$Q$2:$Q$24,0)) -> 0 | J12: =SUM(IF(('7. DATA'!$I$2:$I$24='3. MAFFS Military Costs'!$A12)*('7. DATA'!$D$2:$D$24<>"Support")*('7. DATA'!$E$2:$E$24="N"),'7. DATA'!$Q$2:$Q$24,0)) -> 0 | K12: 0 | L12: 0 | M12: 0 | N12: 0 | O12: 0 | P12: 0
A13: 1900-01-09 | D13: 0 | E13: 0 | G13: =SUM(IF(('7. DATA'!$I$2:$I$24='3. MAFFS Military Costs'!$A13)*('7. DATA'!$D$2:$D$24="Support")*('7. DATA'!$E$2:$E$24="A"),'7. DATA'!$Q$2:$Q$24,0)) -> 0 | H13: =SUM(IF(('7. DATA'!$I$2:$I$24='3. MAFFS Military Costs'!$A13)*('7. DATA'!$D$2:$D$24="Support")*('7. DATA'!$E$2:$E$24="N"),'7. DATA'!$Q$2:$Q$24,0)) -> 0 | I13: =SUM(IF(('7. DATA'!$I$2:$I$24='3. MAFFS Military Costs'!$A13)*('7. DATA'!$D$2:$D$24<>"Support")*('7. DATA'!$E$2:$E$24="A"),'7. DATA'!$Q$2:$Q$24,0)) -> 0 | J13: =SUM(IF(('7. DATA'!$I$2:$I$24='3. MAFFS Military Costs'!$A13)*('7. DATA'!$D$2:$D$24<>"Support")*('7. DATA'!$E$2:$E$24="N"),'7. DATA'!$Q$2:$Q$24,0)) -> 0 | K13: 0 | L13: 0 | M13: 0 | N13: 0 | O13: 0 | P13: 0
A14: 1900-01-10 | D14: 0 | E14: 0 | G14: =SUM(IF(('7. DATA'!$I$2:$I$24='3. MAFFS Military Costs'!$A14)*('7. DATA'!$D$2:$D$24="Support")*('7. DATA'!$E$2:$E$24="A"),'7. DATA'!$Q$2:$Q$24,0)) -> 0 | H14: =SUM(IF(('7. DATA'!$I$2:$I$24='3. MAFFS Military Costs'!$A14)*('7. DATA'!$D$2:$D$24="Support")*('7. DATA'!$E$2:$E$24="N"),'7. DATA'!$Q$2:$Q$24,0)) -> 0 | I14: =SUM(IF(('7. DATA'!$I$2:$I$24='3. MAFFS Military Costs'!$A14)*('7. DATA'!$D$2:$D$24<>"Support")*('7. DATA'!$E$2:$E$24="A"),'7. DATA'!$Q$2:$Q$24,0)) -> 0 | J14: =SUM(IF(('7. DATA'!$I$2:$I$24='3. MAFFS Military Costs'!$A14)*('7. DATA'!$D$2:$D$24<>"Support")*('7. DATA'!$E$2:$E$24="N"),'7. DATA'!$Q$2:$Q$24,0)) -> 0 | K14: 0 | L14: 0 | M14: 0 | N14: 0 | O14: 0 | P14: 0
A15: 1900-01-11 | D15: 0 | E15: 0 | G15: =SUM(IF(('7. DATA'!$I$2:$I$24='3. MAFFS Military Costs'!$A15)*('7. DATA'!$D$2:$D$24="Support")*('7. DATA'!$E$2:$E$24="A"),'7. DATA'!$Q$2:$Q$24,0)) -> 0 | H15: =SUM(IF(('7. DATA'!$I$2:$I$24='3. MAFFS Military Costs'!$A15)*('7. DATA'!$D$2:$D$24="Support")*('7. DATA'!$E$2:$E$24="N"),'7. DATA'!$Q$2:$Q$24,0)) -> 0 | I15: =SUM(IF(('7. DATA'!$I$2:$I$24='3. MAFFS Military Costs'!$A15)*('7. DATA'!$D$2:$D$24<>"Support")*('7. DATA'!$E$2:$E$24="A"),'7. DATA'!$Q$2:$Q$24,0)) -> 0 | J15: =SUM(IF(('7. DATA'!$I$2:$I$24='3. MAFFS Military Costs'!$A15)*('7. DATA'!$D$2:$D$24<>"Support")*('7. DATA'!$E$2:$E$24="N"),'7. DATA'!$Q$2:$Q$24,0)) -> 0 | K15: 0 | L15: 0 | M15: 0 | N15: 0 | O15: 0 | P15: 0
A16: 1900-01-12 | D16: 0 | E16: 0 | G16: =SUM(IF(('7. DATA'!$I$2:$I$24='3. MAFFS Military Costs'!$A16)*('7. DATA'!$D$2:$D$24="Support")*('7. DATA'!$E$2:$E$24="A"),'7. DATA'!$Q$2:$Q$24,0)) -> 0 | H16: =SUM(IF(('7. DATA'!$I$2:$I$24='3. MAFFS Military Costs'!$A16)*('7. DATA'!$D$2:$D$24="Support")*('7. DATA'!$E$2:$E$24="N"),'7. DATA'!$Q$2:$Q$24,0)) -> 0 | I16: =SUM(IF(('7. DATA'!$I$2:$I$24='3. MAFFS Military Costs'!$A16)*('7. DATA'!$D$2:$D$24<>"Support")*('7. DATA'!$E$2:$E$24="A"),'7. DATA'!$Q$2:$Q$24,0)) -> 0 | J16: =SUM(IF(('7. DATA'!$I$2:$I$24='3. MAFFS Military Costs'!$A16)*('7. DATA'!$D$2:$D$24<>"Support")*('7. DATA'!$E$2:$E$24="N"),'7. DATA'!$Q$2:$Q$24,0)) -> 0 | K16: 0 | L16: 0 | M16: 0 | N16: 0 | O16: 0 | P16: 0
A17: 1900-01-13 | D17: 0 | E17: 0 | G17: =SUM(IF(('7. DATA'!$I$2:$I$24='3. MAFFS Military Costs'!$A17)*('7. DATA'!$D$2:$D$24="Support")*('7. DATA'!$E$2:$E$24="A"),'7. DATA'!$Q$2:$Q$24,0)) -> 0 | H17: =SUM(IF(('7. DATA'!$I$2:$I$24='3. MAFFS Military Costs'!$A17)*('7. DATA'!$D$2:$D$24="Support")*('7. DATA'!$E$2:$E$24="N"),'7. DATA'!$Q$2:$Q$24,0)) -> 0 | I17: =SUM(IF(('7. DATA'!$I$2:$I$24='3. MAFFS Military Costs'!$A17)*('7. DATA'!$D$2:$D$24<>"Support")*('7. DATA'!$E$2:$E$24="A"),'7. DATA'!$Q$2:$Q$24,0)) -> 0 | J17: =SUM(IF(('7. DATA'!$I$2:$I$24='3. MAFFS Military Costs'!$A17)*('7. DATA'!$D$2:$D$24<>"Support")*('7. DATA'!$E$2:$E$24="N"),'7. DATA'!$Q$2:$Q$24,0)) -> 0 | K17: 0 | L17: 0 | M17: 0 | N17: 0 | O17: 0 | P17: 0
A18: 1900-01-14 | D18: 0 | E18: 0 | G18: =SUM(IF(('7. DATA'!$I$2:$I$24='3. MAFFS Military Costs'!$A18)*('7. DATA'!$D$2:$D$24="Support")*('7. DATA'!$E$2:$E$24="A"),'7. DATA'!$Q$2:$Q$24,0)) -> 0 | H18: =SUM(IF(('7. DATA'!$I$2:$I$24='3. MAFFS Military Costs'!$A18)*('7. DATA'!$D$2:$D$24="Support")*('7. DATA'!$E$2:$E$24="N"),'7. DATA'!$Q$2:$Q$24,0)) -> 0 | I18: =SUM(IF(('7. DATA'!$I$2:$I$24='3. MAFFS Military Costs'!$A18)*('7. DATA'!$D$2:$D$24<>"Support")*('7. DATA'!$E$2:$E$24="A"),'7. DATA'!$Q$2:$Q$24,0)) -> 0 | J18: =SUM(IF(('7. DATA'!$I$2:$I$24='3. MAFFS Military Costs'!$A18)*('7. DATA'!$D$2:$D$24<>"Support")*('7. DATA'!$E$2:$E$24="N"),'7. DATA'!$Q$2:$Q$24,0)) -> 0 | K18: 0 | L18: 0 | M18: 0 | N18: 0 | O18: 0 | P18: 0
A19: 1900-01-15 | D19: 0 | E19: 0 | G19: =SUM(IF(('7. DATA'!$I$2:$I$24='3. MAFFS Military Costs'!$A19)*('7. DATA'!$D$2:$D$24="Support")*('7. DATA'!$E$2:$E$24="A"),'7. DATA'!$Q$2:$Q$24,0)) -> 0 | H19: =SUM(IF(('7. DATA'!$I$2:$I$24='3. MAFFS Military Costs'!$A19)*('7. DATA'!$D$2:$D$24="Support")*('7. DATA'!$E$2:$E$24="N"),'7. DATA'!$Q$2:$Q$24,0)) -> 0 | I19: =SUM(IF(('7. DATA'!$I$2:$I$24='3. MAFFS Military Costs'!$A19)*('7. DATA'!$D$2:$D$24<>"Support")*('7. DATA'!$E$2:$E$24="A"),'7. DATA'!$Q$2:$Q$24,0)) -> 0 | J19: =SUM(IF(('7. DATA'!$I$2:$I$24='3. MAFFS Military Costs'!$A19)*('7. DATA'!$D$2:$D$24<>"Support")*('7. DATA'!$E$2:$E$24="N"),'7. DATA'!$Q$2:$Q$24,0)) -> 0 | K19: 0 | L19: 0 | M19: 0 | N19: 0 | O19: 0 | P19: 0
A20: 1900-01-16 | D20: 0 | E20: 0 | G20: =SUM(IF(('7. DATA'!$I$2:$I$24='3. MAFFS Military Costs'!$A20)*('7. DATA'!$D$2:$D$24="Support")*('7. DATA'!$E$2:$E$24="A"),'7. DATA'!$Q$2:$Q$24,0)) -> 0 | H20: =SUM(IF(('7. DATA'!$I$2:$I$24='3. MAFFS Military Costs'!$A20)*('7. DATA'!$D$2:$D$24="Support")*('7. DATA'!$E$2:$E$24="N"),'7. DATA'!$Q$2:$Q$24,0)) -> 0 | I20: =SUM(IF(('7. DATA'!$I$2:$I$24='3. MAFFS Military Costs'!$A20)*('7. DATA'!$D$2:$D$24<>"Support")*('7. DATA'!$E$2:$E$24="A"),'7. DATA'!$Q$2:$Q$24,0)) -> 0 | J20: =SUM(IF(('7. DATA'!$I$2:$I$24='3. MAFFS Military Costs'!$A20)*('7. DATA'!$D$2:$D$24<>"Support")*('7. DATA'!$E$2:$E$24="N"),'7. DATA'!$Q$2:$Q$24,0)) -> 0 | K20: 0 | L20: 0 | M20: 0 | N20: 0 | O20: 0 | P20: 0
A21: 1900-01-17 | D21: 0 | E21: 0 | G21: =SUM(IF(('7. DATA'!$I$2:$I$24='3. MAFFS Military Costs'!$A21)*('7. DATA'!$D$2:$D$24="Support")*('7. DATA'!$E$2:$E$24="A"),'7. DATA'!$Q$2:$Q$24,0)) -> 0 | H21: =SUM(IF(('7. DATA'!$I$2:$I$24='3. MAFFS Military Costs'!$A21)*('7. DATA'!$D$2:$D$24="Support")*('7. DATA'!$E$2:$E$24="N"),'7. DATA'!$Q$2:$Q$24,0)) -> 0 | I21: =SUM(IF(('7. DATA'!$I$2:$I$24='3. MAFFS Military Costs'!$A21)*('7. DATA'!$D$2:$D$24<>"Support")*('7. DATA'!$E$2:$E$24="A"),'7. DATA'!$Q$2:$Q$24,0)) -> 0 | J21: =SUM(IF(('7. DATA'!$I$2:$I$24='3. MAFFS Military Costs'!$A21)*('7. DATA'!$D$2:$D$24<>"Support")*('7. DATA'!$E$2:$E$24="N"),'7. DATA'!$Q$2:$Q$24,0)) -> 0 | K21: 0 | L21: 0 | M21: 0 | N21: 0 | O21: 0 | P21: 0
A22: 1900-01-18 | D22: 0 | E22: 0 | G22: =SUM(IF(('7. DATA'!$I$2:$I$24='3. MAFFS Military Costs'!$A22)*('7. DATA'!$D$2:$D$24="Support")*('7. DATA'!$E$2:$E$24="A"),'7. DATA'!$Q$2:$Q$24,0)) -> 0 | H22: =SUM(IF(('7. DATA'!$I$2:$I$24='3. MAFFS Military Costs'!$A22)*('7. DATA'!$D$2:$D$24="Support")*('7. DATA'!$E$2:$E$24="N"),'7. DATA'!$Q$2:$Q$24,0)) -> 0 | I22: =SUM(IF(('7. DATA'!$I$2:$I$24='3. MAFFS Military Costs'!$A22)*('7. DATA'!$D$2:$D$24<>"Support")*('7. DATA'!$E$2:$E$24="A"),'7. DATA'!$Q$2:$Q$24,0)) -> 0 | J22: =SUM(IF(('7. DATA'!$I$2:$I$24='3. MAFFS Military Costs'!$A22)*('7. DATA'!$D$2:$D$24<>"Support")*('7. DATA'!$E$2:$E$24="N"),'7. DATA'!$Q$2:$Q$24,0)) -> 0 | K22: 0 | L22: 0 | M22: 0 | N22: 0 | O22: 0 | P22: 0
A23: 1900-01-19 | D23: 0 | E23: 0 | G23: =SUM(IF(('7. DATA'!$I$2:$I$24='3. MAFFS Military Costs'!$A23)*('7. DATA'!$D$2:$D$24="Support")*('7. DATA'!$E$2:$E$24="A"),'7. DATA'!$Q$2:$Q$24,0)) -> 0 | H23: =SUM(IF(('7. DATA'!$I$2:$I$24='3. MAFFS Military Costs'!$A23)*('7. DATA'!$D$2:$D$24="Support")*('7. DATA'!$E$2:$E$24="N"),'7. DATA'!$Q$2:$Q$24,0)) -> 0 | I23: =SUM(IF(('7. DATA'!$I$2:$I$24='3. MAFFS Military Costs'!$A23)*('7. DATA'!$D$2:$D$24<>"Support")*('7. DATA'!$E$2:$E$24="A"),'7. DATA'!$Q$2:$Q$24,0)) -> 0 | J23: =SUM(IF(('7. DATA'!$I$2:$I$24='3. MAFFS Military Costs'!$A23)*('7. DATA'!$D$2:$D$24<>"Support")*('7. DATA'!$E$2:$E$24="N"),'7. DATA'!$Q$2:$Q$24,0)) -> 0 | K23: 0 | L23: 0 | M23: 0 | N23: 0 | O23: 0 | P23: 0
A24: TOTALS | D24: =SUM(D4:D23) -> 0 | E24: =SUM(E4:E23) -> 0 | G24: =SUM(G4:G23) -> 0 | H24: =SUM(H4:H23) -> 0 | I24: =SUM(I4:I23) -> 0 | J24: =SUM(J4:J23) -> 0 | K24: 0 | L24: 0 | M24: 0 | N24: 0 | O24: =SUM(O4:O23) -> 0 | P24: =SUM(P4:P23) -> 0
F27: SUPPORT HOURS | I27: =H24+G24 -> 0 | J27: MISSON HOURS | L27: =I24+J24 -> 0
G29: TOTAL HOURS | I29: =I27+L27 -> 0
H54: =8614+5080 -> 13694
H55: =H54/2 -> 6847

Sheet 4. Total Cost
A2: Summary of Costs
A4: Retardant Costs | E4: =SUM('7. DATA'!P27) -> 0
A5: Misc. Support Costs | E5: ='6. Misc Support Costs'!I23 -> 4775
A6: Military Costs | E6: =SUM('3. MAFFS Military Costs'!P24)+SUM('8. AEG Costs'!C18) -> 40400
A7: Federal Personnel | E7: =SUM('5. Federal Personnel'!AH24) -> 65510
A8: Grand Total | E8: =SUM(E4:E7) -> 110685
A12: Note: AEG costs have been included in this Summary

Sheet 5. Federal Personnel
A1: Agency Personnel Costs per Day at | G1: =Mailing.list!C19 -> Greeneville, SC
A2: Personnel, Includes estimated OT, Travel & per diem
A3: Only include personnel assigned to the activation….have a resource order number ("O number")
B6: MLO | D6: AMLO | F6: AMLO-T | H6: MABM | J6: MABS | L6: MABS-T | N6: Procurement | P6: MAFFS Clerk | R6: Ground Support | T6: MAFFS Mechanic | V6: Avionics Tech | X6: Safety Officer | Z6: Information Officer | AB6: Base Camp Mgr | AD6: Security | AF6: Camp Crew | AH6: Cost Total | AI6: Personnel
A7: Date | B7: # Assigned | C7: Cost | D7: # Assigned | E7: Cost | F7: # Assigned | G7: Cost | H7: # assigned | I7: Cost | J7: # Assigned | K7: Cost | L7: # Assigned | M7: Cost | N7: # Assigned | O7: Cost | P7: # Assigned | Q7: Cost | R7: # Assigned | S7: Cost | T7: # Assigned | U7: Cost | V7: # Assigned | W7: Cost | X7: # Assigned | Y7: Cost | Z7: # Assigned | AA7: Cost | AB7: # Assigned | AC7: Cost | AD7: # Assigned | AE7: Cost | AF7: # Assigned | AG7: Cost | AH7: TOTAL
A8: 2012-05-03 | B8: 1 | C8: =SUM(lookup!$B$3)*'5. Federal Personnel'!B8 -> 600 | E8: =SUM(lookup!$B$4)*'5. Federal Personnel'!D8 -> 0 | G8: =SUM(lookup!$B$5)*'5. Federal Personnel'!F8 -> 0 | H8: 1 | I8: =SUM(lookup!$B$6)*'5. Federal Personnel'!H8 -> 440 | K8: =SUM(lookup!$B$7)*'5. Federal Personnel'!J8 -> 0 | M8: =SUM(lookup!$B$7)*'5. Federal Personnel'!L8 -> 0 | N8: 1 | O8: =SUM(lookup!$B$8)*'5. Federal Personnel'!N8 -> 440 | P8: 3 | Q8: =SUM(lookup!$B$9)*'5. Federal Personnel'!P8 -> 1200 | R8: 4 | S8: =SUM(lookup!$B$10)*'5. Federal Personnel'!R8 -> 1400 | U8: =SUM(lookup!$B$11)*'5. Federal Personnel'!T8 -> 0 | V8: 1 | W8: =SUM(lookup!$B$12)*'5. Federal Personnel'!V8 -> 500 | X8: 1 | Y8: =SUM(lookup!$B$13)*'5. Federal Personnel'!X8 -> 400 | Z8: 1 | AA8: =SUM(lookup!$B$14)*'5. Federal Personnel'!Z8 -> 400 | AB8: 1 | AC8: =SUM(lookup!$B$15)*'5. Federal Personnel'!AB8 -> 400 | AD8: 3 | AE8: =SUM(lookup!$B$16)*'5. Federal Personnel'!AD8 -> 1500 | AG8: =SUM(lookup!$B$17)*'5. Federal Personnel'!AF8 -> 0 | AH8: =SUM(C8+E8+G8+I8+K8+M8+O8+Q8+S8+U8+W8+Y8+AA8+AC8+AE8+AG8) -> 7280 | AI8: =SUM(B8,D8,F8,H8,J8,L8,N8,P8,R8,T8,V8,X8,Z8,AB8,AD8,AF8) -> 17
A9: =A8+1 -> 2012-05-04 | B9: 1 | C9: =SUM(lookup!$B$3)*'5. Federal Personnel'!B9 -> 600 | E9: =SUM(lookup!$B$4)*'5. Federal Personnel'!D9 -> 0 | G9: =SUM(lookup!$B$5)*'5. Federal Personnel'!F9 -> 0 | H9: 1 | I9: =SUM(lookup!$B$6)*'5. Federal Personnel'!H9 -> 440 | K9: =SUM(lookup!$B$7)*'5. Federal Personnel'!J9 -> 0 | M9: =SUM(lookup!$B$7)*'5. Federal Personnel'!L9 -> 0 | N9: 1 | O9: =SUM(lookup!$B$8)*'5. Federal Personnel'!N9 -> 440 | P9: 3 | Q9: =SUM(lookup!$B$9)*'5. Federal Personnel'!P9 -> 1200 | R9: 4 | S9: =SUM(lookup!$B$10)*'5. Federal Personnel'!R9 -> 1400 | U9: =SUM(lookup!$B$11)*'5. Federal Personnel'!T9 -> 0 | V9: 2 | W9: =SUM(lookup!$B$12)*'5. Federal Personnel'!V9 -> 1000 | X9: 1 | Y9: =SUM(lookup!$B$13)*'5. Federal Personnel'!X9 -> 400 | Z9: 1 | AA9: =SUM(lookup!$B$14)*'5. Federal Personnel'!Z9 -> 400 | AB9: 1 | AC9: =SUM(lookup!$B$15)*'5. Federal Personnel'!AB9 -> 400 | AD9: 3 | AE9: =SUM(lookup!$B$16)*'5. Federal Personnel'!AD9 -> 1500 | AG9: =SUM(lookup!$B$17)*'5. Federal Personnel'!AF9 -> 0 | AH9: =SUM(C9+E9+G9+I9+K9+M9+O9+Q9+S9+U9+W9+Y9+AA9+AC9+AE9+AG9) -> 7780 | AI9: =SUM(B9,D9,F9,H9,J9,L9,N9,P9,R9,T9,V9,X9,Z9,AB9,AD9,AF9) -> 18
A10: =A9+1 -> 2012-05-05 | B10: 1 | C10: =SUM(lookup!$B$3)*'5. Federal Personnel'!B10 -> 600 | E10: =SUM(lookup!$B$4)*'5. Federal Personnel'!D10 -> 0 | G10: =SUM(lookup!$B$5)*'5. Federal Personnel'!F10 -> 0 | H10: 2 | I10: =SUM(lookup!$B$6)*'5. Federal Personnel'!H10 -> 880 | J10: 1 | K10: =SUM(lookup!$B$7)*'5. Federal Personnel'!J10 -> 440 | M10: =SUM(lookup!$B$7)*'5. Federal Personnel'!L10 -> 0 | N10: 2 | O10: =SUM(lookup!$B$8)*'5. Federal Personnel'!N10 -> 880 | P10: 3 | Q10: =SUM(lookup!$B$9)*'5. Federal Personnel'!P10 -> 1200 | R10: 4 | S10: =SUM(lookup!$B$10)*'5. Federal Personnel'!R10 -> 1400 | T10: 3 | U10: =SUM(lookup!$B$11)*'5. Federal Personnel'!T10 -> 2700 | V10: 2 | W10: =SUM(lookup!$B$12)*'5. Federal Personnel'!V10 -> 1000 | X10: 1 | Y10: =SUM(lookup!$B$13)*'5. Federal Personnel'!X10 -> 400 | Z10: 1 | AA10: =SUM(lookup!$B$14)*'5. Federal Personnel'!Z10 -> 400 | AB10: 1 | AC10: =SUM(lookup!$B$15)*'5. Federal Personnel'!AB10 -> 400 | AD10: 3 | AE10: =SUM(lookup!$B$16)*'5. Federal Personnel'!AD10 -> 1500 | AG10: =SUM(lookup!$B$17)*'5. Federal Personnel'!AF10 -> 0 | AH10: =SUM(C10+E10+G10+I10+K10+M10+O10+Q10+S10+U10+W10+Y10+AA10+AC10+AE10+AG10) -> 11800 | AI10: =SUM(B10,D10,F10,H10,J10,L10,N10,P10,R10,T10,V10,X10,Z10,AB10,AD10,AF10) -> 24
A11: =A10+1 -> 2012-05-06 | B11: 1 | C11: =SUM(lookup!$B$3)*'5. Federal Personnel'!B11 -> 600 | E11: =SUM(lookup!$B$4)*'5. Federal Personnel'!D11 -> 0 | G11: =SUM(lookup!$B$5)*'5. Federal Personnel'!F11 -> 0 | H11: 2 | I11: =SUM(lookup!$B$6)*'5. Federal Personnel'!H11 -> 880 | J11: 1 | K11: =SUM(lookup!$B$7)*'5. Federal Personnel'!J11 -> 440 | M11: =SUM(lookup!$B$7)*'5. Federal Personnel'!L11 -> 0 | N11: 2 | O11: =SUM(lookup!$B$8)*'5. Federal Personnel'!N11 -> 880 | P11: 3 | Q11: =SUM(lookup!$B$9)*'5. Federal Personnel'!P11 -> 1200 | R11: 7 | S11: =SUM(lookup!$B$10)*'5. Federal Personnel'!R11 -> 2450 | T11: 3 | U11: =SUM(lookup!$B$11)*'5. Federal Personnel'!T11 -> 2700 | V11: 2 | W11: =SUM(lookup!$B$12)*'5. Federal Personnel'!V11 -> 1000 | X11: 1 | Y11: =SUM(lookup!$B$13)*'5. Federal Personnel'!X11 -> 400 | Z11: 1 | AA11: =SUM(lookup!$B$14)*'5. Federal Personnel'!Z11 -> 400 | AB11: 1 | AC11: =SUM(lookup!$B$15)*'5. Federal Personnel'!AB11 -> 400 | AD11: 4 | AE11: =SUM(lookup!$B$16)*'5. Federal Personnel'!AD11 -> 2000 | AG11: =SUM(lookup!$B$17)*'5. Federal Personnel'!AF11 -> 0 | AH11: =SUM(C11+E11+G11+I11+K11+M11+O11+Q11+S11+U11+W11+Y11+AA11+AC11+AE11+AG11) -> 13350 | AI11: =SUM(B11,D11,F11,H11,J11,L11,N11,P11,R11,T11,V11,X11,Z11,AB11,AD11,AF11) -> 28
A12: =A11+1 -> 2012-05-07 | B12: 1 | C12: =SUM(lookup!$B$3)*'5. Federal Personnel'!B12 -> 600 | E12: =SUM(lookup!$B$4)*'5. Federal Personnel'!D12 -> 0 | G12: =SUM(lookup!$B$5)*'5. Federal Personnel'!F12 -> 0 | H12: 2 | I12: =SUM(lookup!$B$6)*'5. Federal Personnel'!H12 -> 880 | J12: 1 | K12: =SUM(lookup!$B$7)*'5. Federal Personnel'!J12 -> 440 | M12: =SUM(lookup!$B$7)*'5. Federal Personnel'!L12 -> 0 | N12: 2 | O12: =SUM(lookup!$B$8)*'5. Federal Personnel'!N12 -> 880 | P12: 3 | Q12: =SUM(lookup!$B$9)*'5. Federal Personnel'!P12 -> 1200 | R12: 7 | S12: =SUM(lookup!$B$10)*'5. Federal Personnel'!R12 -> 2450 | T12: 2 | U12: =SUM(lookup!$B$11)*'5. Federal Personnel'!T12 -> 1800 | V12: 2 | W12: =SUM(lookup!$B$12)*'5. Federal Personnel'!V12 -> 1000 | X12: 1 | Y12: =SUM(lookup!$B$13)*'5. Federal Personnel'!X12 -> 400 | Z12: 1 | AA12: =SUM(lookup!$B$14)*'5. Federal Personnel'!Z12 -> 400 | AB12: 1 | AC12: =SUM(lookup!$B$15)*'5. Federal Personnel'!AB12 -> 400 | AD12: 4 | AE12: =SUM(lookup!$B$16)*'5. Federal Personnel'!AD12 -> 2000 | AG12: =SUM(lookup!$B$17)*'5. Federal Personnel'!AF12 -> 0 | AH12: =SUM(C12+E12+G12+I12+K12+M12+O12+Q12+S12+U12+W12+Y12+AA12+AC12+AE12+AG12) -> 12450 | AI12: =SUM(B12,D12,F12,H12,J12,L12,N12,P12,R12,T12,V12,X12,Z12,AB12,AD12,AF12) -> 27
A13: 2012-05-08 | B13: 1 | C13: =SUM(lookup!$B$3)*'5. Federal Personnel'!B13 -> 600 | E13: =SUM(lookup!$B$4)*'5. Federal Personnel'!D13 -> 0 | G13: =SUM(lookup!$B$5)*'5. Federal Personnel'!F13 -> 0 | H13: 2 | I13: =SUM(lookup!$B$6)*'5. Federal Personnel'!H13 -> 880 | J13: 1 | K13: =SUM(lookup!$B$7)*'5. Federal Personnel'!J13 -> 440 | M13: =SUM(lookup!$B$7)*'5. Federal Personnel'!L13 -> 0 | N13: 2 | O13: =SUM(lookup!$B$8)*'5. Federal Personnel'!N13 -> 880 | P13: 3 | Q13: =SUM(lookup!$B$9)*'5. Federal Personnel'!P13 -> 1200 | R13: 7 | S13: =SUM(lookup!$B$10)*'5. Federal Personnel'!R13 -> 2450 | T13: 2 | U13: =SUM(lookup!$B$11)*'5. Federal Personnel'!T13 -> 1800 | V13: 2 | W13: =SUM(lookup!$B$12)*'5. Federal Personnel'!V13 -> 1000 | X13: 1 | Y13: =SUM(lookup!$B$13)*'5. Federal Personnel'!X13 -> 400 | Z13: 1 | AA13: =SUM(lookup!$B$14)*'5. Federal Personnel'!Z13 -> 400 | AB13: 2 | AC13: =SUM(lookup!$B$15)*'5. Federal Personnel'!AB13 -> 800 | AD13: 4 | AE13: =SUM(lookup!$B$16)*'5. Federal Personnel'!AD13 -> 2000 | AG13: =SUM(lookup!$B$17)*'5. Federal Personnel'!AF13 -> 0 | AH13: 12850 | AI13: 28
A14: 2012-05-09 | C14: =SUM(lookup!$B$3)*'5. Federal Personnel'!B14 -> 0 | E14: =SUM(lookup!$B$4)*'5. Federal Personnel'!D14 -> 0 | G14: =SUM(lookup!$B$5)*'5. Federal Personnel'!F14 -> 0 | I14: =SUM(lookup!$B$6)*'5. Federal Personnel'!H14 -> 0 | K14: =SUM(lookup!$B$7)*'5. Federal Personnel'!J14 -> 0 | M14: =SUM(lookup!$B$7)*'5. Federal Personnel'!L14 -> 0 | O14: =SUM(lookup!$B$8)*'5. Federal Personnel'!N14 -> 0 | Q14: =SUM(lookup!$B$9)*'5. Federal Personnel'!P14 -> 0 | S14: =SUM(lookup!$B$10)*'5. Federal Personnel'!R14 -> 0 | U14: =SUM(lookup!$B$11)*'5. Federal Personnel'!T14 -> 0 | W14: =SUM(lookup!$B$12)*'5. Federal Personnel'!V14 -> 0 | Y14: =SUM(lookup!$B$13)*'5. Federal Personnel'!X14 -> 0 | AA14: =SUM(lookup!$B$14)*'5. Federal Personnel'!Z14 -> 0 | AC14: =SUM(lookup!$B$15)*'5. Federal Personnel'!AB14 -> 0 | AE14: =SUM(lookup!$B$16)*'5. Federal Personnel'!AD14 -> 0 | AG14: =SUM(lookup!$B$17)*'5. Federal Personnel'!AF14 -> 0 | AH14: 0 | AI14: 0
A15: 2012-05-10 | C15: =SUM(lookup!$B$3)*'5. Federal Personnel'!B15 -> 0 | E15: =SUM(lookup!$B$4)*'5. Federal Personnel'!D15 -> 0 | G15: =SUM(lookup!$B$5)*'5. Federal Personnel'!F15 -> 0 | I15: =SUM(lookup!$B$6)*'5. Federal Personnel'!H15 -> 0 | K15: =SUM(lookup!$B$7)*'5. Federal Personnel'!J15 -> 0 | M15: =SUM(lookup!$B$7)*'5. Federal Personnel'!L15 -> 0 | O15: =SUM(lookup!$B$8)*'5. Federal Personnel'!N15 -> 0 | Q15: =SUM(lookup!$B$9)*'5. Federal Personnel'!P15 -> 0 | S15: =SUM(lookup!$B$10)*'5. Federal Personnel'!R15 -> 0 | U15: =SUM(lookup!$B$11)*'5. Federal Personnel'!T15 -> 0 | W15: =SUM(lookup!$B$12)*'5. Federal Personnel'!V15 -> 0 | Y15: =SUM(lookup!$B$13)*'5. Federal Personnel'!X15 -> 0 | AA15: =SUM(lookup!$B$14)*'5. Federal Personnel'!Z15 -> 0 | AC15: =SUM(lookup!$B$15)*'5. Federal Personnel'!AB15 -> 0 | AE15: =SUM(lookup!$B$16)*'5. Federal Personnel'!AD15 -> 0 | AG15: =SUM(lookup!$B$17)*'5. Federal Personnel'!AF15 -> 0 | AH15: 0 | AI15: 0
A16: 2012-05-11 | C16: =SUM(lookup!$B$3)*'5. Federal Personnel'!B16 -> 0 | E16: =SUM(lookup!$B$4)*'5. Federal Personnel'!D16 -> 0 | G16: =SUM(lookup!$B$5)*'5. Federal Personnel'!F16 -> 0 | I16: =SUM(lookup!$B$6)*'5. Federal Personnel'!H16 -> 0 | K16: =SUM(lookup!$B$7)*'5. Federal Personnel'!J16 -> 0 | M16: =SUM(lookup!$B$7)*'5. Federal Personnel'!L16 -> 0 | O16: =SUM(lookup!$B$8)*'5. Federal Personnel'!N16 -> 0 | Q16: =SUM(lookup!$B$9)*'5. Federal Personnel'!P16 -> 0 | S16: =SUM(lookup!$B$10)*'5. Federal Personnel'!R16 -> 0 | U16: =SUM(lookup!$B$11)*'5. Federal Personnel'!T16 -> 0 | W16: =SUM(lookup!$B$12)*'5. Federal Personnel'!V16 -> 0 | Y16: =SUM(lookup!$B$13)*'5. Federal Personnel'!X16 -> 0 | AA16: =SUM(lookup!$B$14)*'5. Federal Personnel'!Z16 -> 0 | AC16: =SUM(lookup!$B$15)*'5. Federal Personnel'!AB16 -> 0 | AE16: =SUM(lookup!$B$16)*'5. Federal Personnel'!AD16 -> 0 | AG16: =SUM(lookup!$B$17)*'5. Federal Personnel'!AF16 -> 0 | AH16: 0 | AI16: 0
A17: 2012-05-12 | C17: =SUM(lookup!$B$3)*'5. Federal Personnel'!B17 -> 0 | E17: =SUM(lookup!$B$4)*'5. Federal Personnel'!D17 -> 0 | G17: =SUM(lookup!$B$5)*'5. Federal Personnel'!F17 -> 0 | I17: =SUM(lookup!$B$6)*'5. Federal Personnel'!H17 -> 0 | K17: =SUM(lookup!$B$7)*'5. Federal Personnel'!J17 -> 0 | M17: =SUM(lookup!$B$7)*'5. Federal Personnel'!L17 -> 0 | O17: =SUM(lookup!$B$8)*'5. Federal Personnel'!N17 -> 0 | Q17: =SUM(lookup!$B$9)*'5. Federal Personnel'!P17 -> 0 | S17: =SUM(lookup!$B$10)*'5. Federal Personnel'!R17 -> 0 | U17: =SUM(lookup!$B$11)*'5. Federal Personnel'!T17 -> 0 | W17: =SUM(lookup!$B$12)*'5. Federal Personnel'!V17 -> 0 | Y17: =SUM(lookup!$B$13)*'5. Federal Personnel'!X17 -> 0 | AA17: =SUM(lookup!$B$14)*'5. Federal Personnel'!Z17 -> 0 | AC17: =SUM(lookup!$B$15)*'5. Federal Personnel'!AB17 -> 0 | AE17: =SUM(lookup!$B$16)*'5. Federal Personnel'!AD17 -> 0 | AG17: =SUM(lookup!$B$17)*'5. Federal Personnel'!AF17 -> 0 | AH17: 0 | AI17: 0
A18: 2012-05-13 | C18: =SUM(lookup!$B$3)*'5. Federal Personnel'!B18 -> 0 | E18: =SUM(lookup!$B$4)*'5. Federal Personnel'!D18 -> 0 | G18: =SUM(lookup!$B$5)*'5. Federal Personnel'!F18 -> 0 | I18: =SUM(lookup!$B$6)*'5. Federal Personnel'!H18 -> 0 | K18: =SUM(lookup!$B$7)*'5. Federal Personnel'!J18 -> 0 | M18: =SUM(lookup!$B$7)*'5. Federal Personnel'!L18 -> 0 | O18: =SUM(lookup!$B$8)*'5. Federal Personnel'!N18 -> 0 | Q18: =SUM(lookup!$B$9)*'5. Federal Personnel'!P18 -> 0 | S18: =SUM(lookup!$B$10)*'5. Federal Personnel'!R18 -> 0 | U18: =SUM(lookup!$B$11)*'5. Federal Personnel'!T18 -> 0 | W18: =SUM(lookup!$B$12)*'5. Federal Personnel'!V18 -> 0 | Y18: =SUM(lookup!$B$13)*'5. Federal Personnel'!X18 -> 0 | AA18: =SUM(lookup!$B$14)*'5. Federal Personnel'!Z18 -> 0 | AC18: =SUM(lookup!$B$15)*'5. Federal Personnel'!AB18 -> 0 | AE18: =SUM(lookup!$B$16)*'5. Federal Personnel'!AD18 -> 0 | AG18: =SUM(lookup!$B$17)*'5. Federal Personnel'!AF18 -> 0 | AH18: 0 | AI18: 0
A19: 2012-05-14 | C19: =SUM(lookup!$B$3)*'5. Federal Personnel'!B19 -> 0 | E19: =SUM(lookup!$B$4)*'5. Federal Personnel'!D19 -> 0 | G19: =SUM(lookup!$B$5)*'5. Federal Personnel'!F19 -> 0 | I19: =SUM(lookup!$B$6)*'5. Federal Personnel'!H19 -> 0 | K19: =SUM(lookup!$B$7)*'5. Federal Personnel'!J19 -> 0 | M19: =SUM(lookup!$B$7)*'5. Federal Personnel'!L19 -> 0 | O19: =SUM(lookup!$B$8)*'5. Federal Personnel'!N19 -> 0 | Q19: =SUM(lookup!$B$9)*'5. Federal Personnel'!P19 -> 0 | S19: =SUM(lookup!$B$10)*'5. Federal Personnel'!R19 -> 0 | U19: =SUM(lookup!$B$11)*'5. Federal Personnel'!T19 -> 0 | W19: =SUM(lookup!$B$12)*'5. Federal Personnel'!V19 -> 0 | Y19: =SUM(lookup!$B$13)*'5. Federal Personnel'!X19 -> 0 | AA19: =SUM(lookup!$B$14)*'5. Federal Personnel'!Z19 -> 0 | AC19: =SUM(lookup!$B$15)*'5. Federal Personnel'!AB19 -> 0 | AE19: =SUM(lookup!$B$16)*'5. Federal Personnel'!AD19 -> 0 | AG19: =SUM(lookup!$B$17)*'5. Federal Personnel'!AF19 -> 0 | AH19: 0 | AI19: 0
A20: 2012-05-15 | C20: =SUM(lookup!$B$3)*'5. Federal Personnel'!B20 -> 0 | E20: =SUM(lookup!$B$4)*'5. Federal Personnel'!D20 -> 0 | G20: =SUM(lookup!$B$5)*'5. Federal Personnel'!F20 -> 0 | I20: =SUM(lookup!$B$6)*'5. Federal Personnel'!H20 -> 0 | K20: =SUM(lookup!$B$7)*'5. Federal Personnel'!J20 -> 0 | M20: =SUM(lookup!$B$7)*'5. Federal Personnel'!L20 -> 0 | O20: =SUM(lookup!$B$8)*'5. Federal Personnel'!N20 -> 0 | Q20: =SUM(lookup!$B$9)*'5. Federal Personnel'!P20 -> 0 | S20: =SUM(lookup!$B$10)*'5. Federal Personnel'!R20 -> 0 | U20: =SUM(lookup!$B$11)*'5. Federal Personnel'!T20 -> 0 | W20: =SUM(lookup!$B$12)*'5. Federal Personnel'!V20 -> 0 | Y20: =SUM(lookup!$B$13)*'5. Federal Personnel'!X20 -> 0 | AA20: =SUM(lookup!$B$14)*'5. Federal Personnel'!Z20 -> 0 | AC20: =SUM(lookup!$B$15)*'5. Federal Personnel'!AB20 -> 0 | AE20: =SUM(lookup!$B$16)*'5. Federal Personnel'!AD20 -> 0 | AG20: =SUM(lookup!$B$17)*'5. Federal Personnel'!AF20 -> 0 | AH20: 0 | AI20: 0
A21: 2012-05-16 | C21: =SUM(lookup!$B$3)*'5. Federal Personnel'!B21 -> 0 | E21: =SUM(lookup!$B$4)*'5. Federal Personnel'!D21 -> 0 | G21: =SUM(lookup!$B$5)*'5. Federal Personnel'!F21 -> 0 | I21: =SUM(lookup!$B$6)*'5. Federal Personnel'!H21 -> 0 | K21: =SUM(lookup!$B$7)*'5. Federal Personnel'!J21 -> 0 | M21: =SUM(lookup!$B$7)*'5. Federal Personnel'!L21 -> 0 | O21: =SUM(lookup!$B$8)*'5. Federal Personnel'!N21 -> 0 | Q21: =SUM(lookup!$B$9)*'5. Federal Personnel'!P21 -> 0 | S21: =SUM(lookup!$B$10)*'5. Federal Personnel'!R21 -> 0 | U21: =SUM(lookup!$B$11)*'5. Federal Personnel'!T21 -> 0 | W21: =SUM(lookup!$B$12)*'5. Federal Personnel'!V21 -> 0 | Y21: =SUM(lookup!$B$13)*'5. Federal Personnel'!X21 -> 0 | AA21: =SUM(lookup!$B$14)*'5. Federal Personnel'!Z21 -> 0 | AC21: =SUM(lookup!$B$15)*'5. Federal Personnel'!AB21 -> 0 | AE21: =SUM(lookup!$B$16)*'5. Federal Personnel'!AD21 -> 0 | AG21: =SUM(lookup!$B$17)*'5. Federal Personnel'!AF21 -> 0 | AH21: 0 | AI21: 0
A22: 2012-05-17 | C22: =SUM(lookup!$B$3)*'5. Federal Personnel'!B22 -> 0 | E22: =SUM(lookup!$B$4)*'5. Federal Personnel'!D22 -> 0 | G22: =SUM(lookup!$B$5)*'5. Federal Personnel'!F22 -> 0 | I22: =SUM(lookup!$B$6)*'5. Federal Personnel'!H22 -> 0 | K22: =SUM(lookup!$B$7)*'5. Federal Personnel'!J22 -> 0 | M22: =SUM(lookup!$B$7)*'5. Federal Personnel'!L22 -> 0 | O22: =SUM(lookup!$B$8)*'5. Federal Personnel'!N22 -> 0 | Q22: =SUM(lookup!$B$9)*'5. Federal Personnel'!P22 -> 0 | S22: =SUM(lookup!$B$10)*'5. Federal Personnel'!R22 -> 0 | U22: =SUM(lookup!$B$11)*'5. Federal Personnel'!T22 -> 0 | W22: =SUM(lookup!$B$12)*'5. Federal Personnel'!V22 -> 0 | Y22: =SUM(lookup!$B$13)*'5. Federal Personnel'!X22 -> 0 | AA22: =SUM(lookup!$B$14)*'5. Federal Personnel'!Z22 -> 0 | AC22: =SUM(lookup!$B$15)*'5. Federal Personnel'!AB22 -> 0 | AE22: =SUM(lookup!$B$16)*'5. Federal Personnel'!AD22 -> 0 | AG22: =SUM(lookup!$B$17)*'5. Federal Personnel'!AF22 -> 0 | AH22: 0 | AI22: 0
A23: 2012-05-18 | C23: =SUM(lookup!$B$3)*'5. Federal Personnel'!B23 -> 0 | E23: =SUM(lookup!$B$4)*'5. Federal Personnel'!D23 -> 0 | G23: =SUM(lookup!$B$5)*'5. Federal Personnel'!F23 -> 0 | I23: =SUM(lookup!$B$6)*'5. Federal Personnel'!H23 -> 0 | K23: =SUM(lookup!$B$7)*'5. Federal Personnel'!J23 -> 0 | M23: =SUM(lookup!$B$7)*'5. Federal Personnel'!L23 -> 0 | O23: =SUM(lookup!$B$8)*'5. Federal Personnel'!N23 -> 0 | Q23: =SUM(lookup!$B$9)*'5. Federal Personnel'!P23 -> 0 | S23: =SUM(lookup!$B$10)*'5. Federal Personnel'!R23 -> 0 | U23: =SUM(lookup!$B$11)*'5. Federal Personnel'!T23 -> 0 | W23: =SUM(lookup!$B$12)*'5. Federal Personnel'!V23 -> 0 | Y23: =SUM(lookup!$B$13)*'5. Federal Personnel'!X23 -> 0 | AA23: =SUM(lookup!$B$14)*'5. Federal Personnel'!Z23 -> 0 | AC23: =SUM(lookup!$B$15)*'5. Federal Personnel'!AB23 -> 0 | AE23: =SUM(lookup!$B$16)*'5. Federal Personnel'!AD23 -> 0 | AG23: =SUM(lookup!$B$17)*'5. Federal Personnel'!AF23 -> 0 | AH23: 0 | AI23: 0
B24: =SUM(B8:B23) -> 6 | C24: 3600 | D24: 0 | E24: 0 | F24: 0 | G24: 0 | H24: 10 | I24: 4400 | J24: 4 | K24: 1760 | L24: 0 | M24: 0 | N24: 10 | O24: 4400 | P24: 18 | Q24: 7200 | R24: 33 | S24: 11550 | T24: 10 | U24: 9000 | V24: 11 | W24: 5500 | X24: 6 | Y24: 2400 | Z24: 6 | AA24: 2400 | AB24: 7 | AC24: 2800 | AD24: 21 | AE24: =SUM(AG8+AG23) -> 0 | AF24: =SUM(AF8:AF23) -> 0 | AG24: =SUM(AG8:AG23) -> 0 | AH24: =SUM(AH8:AH23) -> 65510 | AI24: =SUM(AI8:AI23) -> 142

Sheet 6. Misc Support Costs
B1: MAFFS Equipment & Supply Expenses at | G1: =Mailing.list!C19 -> Greeneville, SC
C3: Date | D3: Transportation | E3: Lodging | F3: Supplies | G3: Services/ Equipment | H3: Airport Fees | I3: Cost
C4: 2012-05-03 | F4: 4775 | I4: =SUM(D4:H4) -> 4775
C5: =C4+1 -> 2012-05-04 | I5: 0
C6: =C5+1 -> 2012-05-05 | I6: 0
C7: 2012-05-06 | I7: 0
C8: 2012-05-07 | I8: 0
C9: 2012-05-08 | I9: 0
C10: 2012-05-09 | I10: 0
C11: 2012-05-10 | I11: =SUM(D11:H11) -> 0
C12: 2012-05-11 | I12: 0
C13: 2012-05-12 | I13: 0
C14: 2012-05-13 | I14: 0
C15: 2012-05-14 | I15: 0
C16: 2012-05-15 | I16: 0
C17: 2012-05-16 | I17: 0
C18: 2012-05-17 | I18: 0
C19: 2012-05-18 | I19: 0
C20: 2012-05-19 | I20: 0
C21: 2012-05-20 | I21: 0
C22: 2012-05-21 | I22: =SUM(D22:H22) -> 0
C23: Grand Total | I23: =SUM(I4:I22) -> 4775
C24: Subtotal | D24: =SUM(D4:D23) -> 0 | E24: =SUM(E4:E23) -> 0 | F24: =SUM(F4:F23) -> 4775 | G24: =SUM(G4:G23) -> 0 | H24: =SUM(H4:H23) -> 0
C28: Note: Costs shown here are direct charges at this location only
C30: Transportation: Cost associated with rental vehicle fleet that is to be billed to the activation at this location. Include also any transportation of equipment such as compressors, risk kits, portable pit equipment and transportation of MAFFS II trailer (as examples)
C32: Lodging: Costs of lodging that will be direct billed to the activation at this location (do not include cost of hotels being paid from employee per diem rates)
C34: Supplies: Costs associated with disposable supply items or lost accountable property
C36: Services/ Equipment: Cost associated with providing scheduled maintenance and upkeep of activation facilities. For example…toilet servicing, pit pumping, telephone/data connections, refer trailer, tents, trailers, rental of port a potties, fax machines, copy machines, etc
C38: Airport Fees: Daily total for landing fees or other airport fees (if any) at the activation location

Sheet 7. DATA
A1: Base Location | B1: Fire Name | C1: P-Code | D1: MAFFS UNIT # or Support | E1: A=AF N=NG | F1: Month | G1: Day | H1: Year | I1: Date (NO ENTRY REQ'D) | J1: State Name | K1: Unit Identifier | L1: Order Number | M1: Flights | N1: Retardant Gallons | O1: Retardant/Gallon Cost | P1: Retardant Cost | Q1: Flight Hours | R1: Comments (not visible on any other tabs)
M27: =SUM(M2:M24) -> 0 | N27: =SUM(N2:N24) -> 0 | P27: =SUM(P2:P24) -> 0 | Q27: =SUM(Q2:Q26) -> 0

Sheet 8. AEG Costs
A3: Note: Standard AEG Costs are one officer and one enlisted (Title 32). Large activations will require additional military personnel assigned. Costs embedded include all travel and per diem
A4: Date | B4: # | C4: Standard AEG Commander | D4: # | E4: Standard AEG Support (Enlisted) | F4: # | G4: Additional | H4: # | I4: Additional | J4: # | K4: Additional | L4: # | M4: Additional | N4: # | O4: Additional | P4: # | Q4: Additional
B5: 4 | C5: =SUM(lookup!$B$21)*B5 -> 2400 | D5: 3 | E5: =SUM(lookup!$B$22)*D5 -> 1200 | G5: =SUM(lookup!$B$23)*F5 -> 0 | I5: =SUM(lookup!$B$24)*H5 -> 0 | K5: =SUM(lookup!$B$25)*J5 -> 0 | M5: =SUM(lookup!$B$26)*L5 -> 0 | O5: =SUM(lookup!$B$27)*N5 -> 0 | Q5: =SUM(lookup!$B$28)*P5 -> 0
A6: =+A5+1 -> 1900-01-01 | B6: 4 | C6: =SUM(lookup!$B$21)*B6 -> 2400 | D6: 3 | E6: =SUM(lookup!$B$22)*D6 -> 1200 | G6: =SUM(lookup!$B$23)*F6 -> 0 | I6: =SUM(lookup!$B$24)*H6 -> 0 | K6: =SUM(lookup!$B$25)*J6 -> 0 | M6: =SUM(lookup!$B$26)*L6 -> 0 | O6: =SUM(lookup!$B$27)*N6 -> 0 | Q6: =SUM(lookup!$B$28)*P6 -> 0
A7: =+A6+1 -> 1900-01-02 | B7: 4 | C7: =SUM(lookup!$B$21)*B7 -> 2400 | D7: 3 | E7: =SUM(lookup!$B$22)*D7 -> 1200 | G7: =SUM(lookup!$B$23)*F7 -> 0 | I7: =SUM(lookup!$B$24)*H7 -> 0 | K7: =SUM(lookup!$B$25)*J7 -> 0 | M7: =SUM(lookup!$B$26)*L7 -> 0 | O7: =SUM(lookup!$B$27)*N7 -> 0 | Q7: =SUM(lookup!$B$28)*P7 -> 0
A8: =+A7+1 -> 1900-01-03 | B8: 4 | C8: =SUM(lookup!$B$21)*B8 -> 2400 | D8: 3 | E8: =SUM(lookup!$B$22)*D8 -> 1200 | G8: =SUM(lookup!$B$23)*F8 -> 0 | I8: =SUM(lookup!$B$24)*H8 -> 0 | K8: =SUM(lookup!$B$25)*J8 -> 0 | M8: =SUM(lookup!$B$26)*L8 -> 0 | O8: =SUM(lookup!$B$27)*N8 -> 0 | Q8: =SUM(lookup!$B$28)*P8 -> 0
A9: =+A8+1 -> 1900-01-04 | B9: 4 | C9: =SUM(lookup!$B$21)*B9 -> 2400 | D9: 4 | E9: =SUM(lookup!$B$22)*D9 -> 1600 | G9: =SUM(lookup!$B$23)*F9 -> 0 | I9: =SUM(lookup!$B$24)*H9 -> 0 | K9: =SUM(lookup!$B$25)*J9 -> 0 | M9: =SUM(lookup!$B$26)*L9 -> 0 | O9: =SUM(lookup!$B$27)*N9 -> 0 | Q9: =SUM(lookup!$B$28)*P9 -> 0
A10: 1900-01-05 | B10: 4 | C10: =SUM(lookup!$B$21)*B10 -> 2400 | D10: 4 | E10: =SUM(lookup!$B$22)*D10 -> 1600 | G10: =SUM(lookup!$B$23)*F10 -> 0 | I10: =SUM(lookup!$B$24)*H10 -> 0 | K10: =SUM(lookup!$B$25)*J10 -> 0 | M10: =SUM(lookup!$B$26)*L10 -> 0 | O10: =SUM(lookup!$B$27)*N10 -> 0 | Q10: =SUM(lookup!$B$28)*P10 -> 0
A11: 1900-01-06 | B11: 4 | C11: =SUM(lookup!$B$21)*B11 -> 2400 | D11: 3 | E11: =SUM(lookup!$B$22)*D11 -> 1200 | G11: =SUM(lookup!$B$23)*F11 -> 0 | I11: =SUM(lookup!$B$24)*H11 -> 0 | K11: =SUM(lookup!$B$25)*J11 -> 0 | M11: =SUM(lookup!$B$26)*L11 -> 0 | O11: =SUM(lookup!$B$27)*N11 -> 0 | Q11: =SUM(lookup!$B$28)*P11 -> 0
A12: 1900-01-07 | B12: 4 | C12: =SUM(lookup!$B$21)*B12 -> 2400 | D12: 3 | E12: =SUM(lookup!$B$22)*D12 -> 1200 | G12: =SUM(lookup!$B$23)*F12 -> 0 | I12: =SUM(lookup!$B$24)*H12 -> 0 | K12: =SUM(lookup!$B$25)*J12 -> 0 | M12: =SUM(lookup!$B$26)*L12 -> 0 | O12: =SUM(lookup!$B$27)*N12 -> 0 | Q12: =SUM(lookup!$B$28)*P12 -> 0
A13: 1900-01-08 | B13: 4 | C13: =SUM(lookup!$B$21)*B13 -> 2400 | D13: 3 | E13: =SUM(lookup!$B$22)*D13 -> 1200 | G13: =SUM(lookup!$B$23)*F13 -> 0 | I13: =SUM(lookup!$B$24)*H13 -> 0 | K13: =SUM(lookup!$B$25)*J13 -> 0 | M13: =SUM(lookup!$B$26)*L13 -> 0 | O13: =SUM(lookup!$B$27)*N13 -> 0 | Q13: =SUM(lookup!$B$28)*P13 -> 0
A14: 1900-01-09 | B14: 4 | C14: =SUM(lookup!$B$21)*B14 -> 2400 | D14: 3 | E14: =SUM(lookup!$B$22)*D14 -> 1200 | G14: =SUM(lookup!$B$23)*F14 -> 0 | I14: =SUM(lookup!$B$24)*H14 -> 0 | K14: =SUM(lookup!$B$25)*J14 -> 0 | M14: =SUM(lookup!$B$26)*L14 -> 0 | O14: =SUM(lookup!$B$27)*N14 -> 0 | Q14: =SUM(lookup!$B$28)*P14 -> 0
A15: 1900-01-10 | B15: 4 | C15: =SUM(lookup!$B$21)*B15 -> 2400 | D15: 3 | E15: =SUM(lookup!$B$22)*D15 -> 1200 | G15: =SUM(lookup!$B$23)*F15 -> 0 | I15: =SUM(lookup!$B$24)*H15 -> 0 | K15: =SUM(lookup!$B$25)*J15 -> 0 | M15: =SUM(lookup!$B$26)*L15 -> 0 | O15: =SUM(lookup!$B$27)*N15 -> 0 | Q15: =SUM(lookup!$B$28)*P15 -> 0
A16: 1900-01-11 | C16: =SUM(lookup!$B$21)*B16 -> 0 | E16: =SUM(lookup!$B$22)*D16 -> 0 | G16: =SUM(lookup!$B$23)*F16 -> 0 | I16: =SUM(lookup!$B$24)*H16 -> 0 | K16: =SUM(lookup!$B$25)*J16 -> 0 | M16: =SUM(lookup!$B$26)*L16 -> 0 | O16: =SUM(lookup!$B$27)*N16 -> 0 | Q16: =SUM(lookup!$B$28)*P16 -> 0
A17: SubTotals | C17: =SUM(C5:C16) -> 26400 | E17: =SUM(E5:E16) -> 14000 | G17: =SUM(G5:G16) -> 0 | I17: =SUM(I5:I16) -> 0 | K17: =SUM(K5:K16) -> 0 | M17: =SUM(M5:M16) -> 0 | O17: =SUM(O5:O16) -> 0 | Q17: =SUM(Q5:Q16) -> 0
A18: TOTAL COST | C18: =SUM(C17+E17+G17+I17+K17+M17+O17+Q17) -> 40400

Sheet Mailing.list
A2: Below is the standard list to begin your activation mailing list. You may want to add/subract from this list.
A3: Some possible additions are contacts at the region/forest, yourself (to verify it's working), others on your cadre.
A5: Address | F5: Explanation
A6: warren2750@gmail.com | F6: Mike Warren (helping with spreadsheet problems and reporting)
F7: Ass't Center Manager-NICC
A8: sfisher01@fs.fed.us | F8: Acting MAFFS Training Coordinator
A9: bbilyeu@fs.fed.us | F9: Financial Manager-NIFC
A10: intell@nifc.blm.gov | F10: NICC Intell Desk
A11: kachristensen@fs.fed.us | F11: Center Manager-NICC
A12: cod@nifc.blm.gov | F12: Coordinator at NICC
A13: jmullins@bresnan.net | F13: Darlene Mullins (Monitors problem areas and assists with monthly/yearly reporting)
F14: Military representative @ NIFC
A15: aeg-wff@idbois.ang.af.mil | F15: Alternate for military rep. @ NIFC
A16: asc_icp@fs.fed.us | F16: ASC Incident Payment Center, Albuquerque NM
A17: fdomingu@blm.gov | F17: Frank Domingues MLO
A19: Insert location name: | C19: Greeneville, SC

Sheet Changes (hidden)
A1: Changes made by Darlene:
A3: TAB | B3: COLUMN | C3: ROW | D3: CHANGE MADE
A5: Tab Mailing.list | C5: 2,3,4 | D5: Entered explanations on possible changes people should make to the stardardized mailing list
A6: Tab Mailing.list | B6: C | C6: 18 | D6: Have people fill in their operating "location" here, and it will auto fill on sheets 3,5,6,7
A7: 7. DATA | B7: i | D7: Added formula so no entry is needed (this is filled in by formula from columns f,g,h)
A8: 7. DATA | B8: i | D8: Changed header to indicate there is no entry required in this column
A9: 3. MAFFS Military Costs | B9: k,l,m,n | C9: all | D9: Changed flight hour costs to $5186 + $1600 (extraordinary mtnc)
A10: Tab Mailing.list | C10: all | D10: Added ASC to standard mailing list for all costs (11/16/07) dm
A11: v 2.1.4 | B11: misc | D11: Saved some formula changes - 2/10/2009
D13: NOTE: flight cost for J-model C130 = $4894 per flight hour (no adjustment for extrodinary mtnc) (2010 season)
D14: AFRes CO-Springs cost is $6472 per flight hour
D15: ANG H models = $5530 per flight hour
A16: v 2.1.2011 (new on 10.25.2010) | D16: Added Tab 8.AEG Costs to capture standard AEG costs for daily reporting
A17: v 2.1.2011 | B17: TAB3 | D17: Changed flight hour costs to $6472 per flight hour for AFRES and $5530 for all ANG (even though J model is $4874)
A38: v.2.1.2011 | B38: TAB8 | D38: Added AEG Costs - standard for 1 officer; 1 enlisted
A39: v.2.1.2011 | B39: ALL | D39: FIXED COSTS FOR DICK - dm
D40: Used $5080/hr for J model on dates thru 17th. On 18th, used average of J @$5080 and H@$8614 for $6847

Sheet Instructions
E5: Instructions for Completion of Workbook
E6: Version 2.1.2011 (updated for 2011 operating season)
A9: 1. | B9: Enter your operating location in cell C19 of the Mailing.List tab. That entry will then automatically populate all other "Location" occurrences.
A10: 2. | B10: On the Mailing.List tab, verify your mailing list for report distribution and make appropriate changes.
A11: 3. | B11: Begin by entering data on gray tab "7. DATA". Enter info CAREFULLY as 2 additional tabs use this data in a pivot report. It is best to use the copy/paste functions whenever possible in order to avoid typos. Needed info will be available in MAFFS Ops. Sorties and flight hours will be from military records and gallons of retardant and costs will be available from your MABM. If incremental drops are made count entire mission as one sortie.
C12: For Column C "P-codes": The second digit of the P-Code indicates the jurisdictional agency. For example: D=(BLM); A=(BIA); P=(NPS); R=(FWS)
C13: Standardize your entries whenever possible. It makes the report on tab 2 less confusing. Also make sure you type in "Support" when appropriate in Column D of Tab 7 because it feeds the totals at the bottom of Tab 3.
A14: 2. | B14: Salmon tab "6. Misc support Costs" will be from procurement records. Make sure to insert lines in the middle of the page, in order to facilitate the "Total Cost" calculation (on the green tab). If you insert lines at the bottom, the fomula may not include all necessary lines.
A15: 3. | B15: Lavender tab "5. Federal Personnel" is an estimate of all agency personnel assigned to the incident. The costs are developed as an average, including associated per diem. Although an estimate, these figures are recommended due to offsetting of highs and lows throughout the incident duration. Enter number of personnel assigned in each column -- if unsure of what number to enter, review the resource orders for your incident.
A16: 4. | B16: Green tab "4. Total Cost" will update automatically because the numbers are linked to other tabs within this workbook. To check that the links are working correctly, you can manually check that row #5 is picking up the total from the salmon tab "Mics. support Costs" Grand Total. Row #6 should be picking up the grand total from the turquoise tab "MAFFS Military Costs" in column P, as well as any costs for AEG Staff recorded in tab 8. Row #7 should be picking up the total from column AD (cumulative Agency costs) on the lavender tab "Federal Personnel".
A17: 5. | B17: Turquoise tab "3. MAFFS Military Costs" will be collected from the military in MAFFS Ops. Fill in yellow cells. You will need to look at the military SitRep to determine the number of Guard versus Reserve personnel.
C18: All other columns are locked in this report; however, imbedded in the costs are appropriate costs for flight hours (as determined by Bobbe BIlyea). You will not be able to change this during the year, as costs will only be changed prior to each activation year, with DoD and FS agreement (during pre-season conference).
A19: 6. | B19: Blue tab "2. Report.Summary.All" is a pivot report that draws data from the gray tab "DATA". To update the information in the pivot report, click the blue tab and place your cursor anywhere within the report. On the toolbar, select Data, Refresh Data.
A20: 7. | B20: Pink tab "1. Report.MAFFS.by Incident" is a pivot report that draws data from the gray tab "DATA". To update the information in the pivot report, click the pink tab and place your cursor anywhere within the report. On the toobar, select Data, Refresh Data (or hit the Refresh Button). Select the date you want to display by clicking the yellow pick list (you will usually select the most current date so your report will display that date when your recipient opens the workbook.
A21: 8. | B21: Blue tab "8. AEG Costs" is new for this version of the workbook. It is based on information from Lt Col Bryan Allen of the 146th AW. The tab uses a lookup for costs -- so all you need to do is enter your primary AEG staff and any additional staff.
B22: PLEASE DO NOT CHANGE ANY OF THE SPREAD SHEETS without checking with the MAFFS Training Coordinator. This includes hiding data fields or rows. These sheets are viewed by a number of folks and when they change all of a sudden it gets very confusing for some of them who have a valid right to know.
A23: 9. | B23: Before sending to your mailing list, you may want to "Hide" the Instruction Sheet, the Mailing.List tab, and the changes tab. To do this select Format on the tool bar, click sheet, clide Hide. You can easily Unhide at a later date. I would also hide tabs 5, 6, and 7......the only ones of importance are 1,2,3,4

Sheet lookup (hidden)
A3: MLO | B3: 600
A4: AMLO | B4: 550
A5: AMLO-T | B5: 500
A6: MABM | B6: 440
A7: MABS or MABS-T | B7: 440
A8: Procurement | B8: 440
A9: MAFFS Clerk | B9: 400
A10: Ground Support | B10: 350
A11: MAFFS Mech. | B11: 900
A12: Avionics Tech. | B12: 500
A13: Safety Officer | B13: 400
A14: Information Officer | B14: 400
A15: BCMG | B15: 400
A16: Security | B16: 500
A17: Camp Crew | B17: 350
A21: AEG Commander | B21: 600
A22: AEG Support | B22: 400
A23: Additional 1 | B23: 500
A24: Additional 2 | B24: 500
A25: Additional 3 | B25: 500
A26: Additional 4 | B26: 500
A27: Additional 5 | B27: 500
A28: Additional 6 | B28: 500
